[Event "December 5 Early 2023"]
[Site "https://www.chess.com"]
[Date "2023.12.05"]
[Round "7"]
[White "Garrido, Denis"]
[Black "Ozates, Tuna"]
[Result "0-1"]
[Board "111"]
[TimeControl "180+1"]
[WhiteFideId "601217"]
[BlackFideId "6354521"]
[WhiteElo "2393"]
[BlackElo "2534"]
[WhiteTeam "FRA"]
[BlackTeam "TUR"]
[WhiteClock "0:00:08"]
[BlackClock "0:01:23"]

1. d4 {[%clk 0:03:00]}  Nf6 {[%clk 0:03:00]} 2. Nf3 {[%clk 0:03:00]}  d5 {[%clk 0:02:59]} 3. c4 {[%clk 0:03:00]}  e6 {[%clk 0:02:58]} 4. g3 {[%clk 0:03:00]}  dxc4 {[%clk 0:02:58]} 5. Bg2 {[%clk 0:03:00]}  Bd7 {[%clk 0:02:59]} 6. Ne5 {[%clk 0:02:48]}  Bc6 {[%clk 0:02:59]} 7. Nxc6 {[%clk 0:02:46]}  Nxc6 {[%clk 0:03:00]} 8. e3 {[%clk 0:02:38]}  Qd7 {[%clk 0:03:01]} 9. Qa4 {[%clk 0:02:30]}  Nd5 {[%clk 0:03:00]} 10. Qxc4 {[%clk 0:02:28]}  h5 {[%clk 0:03:00]} 11. Nc3 {[%clk 0:02:24]}  O-O-O {[%clk 0:02:59]} 12. h4 {[%clk 0:02:18]}  Kb8 {[%clk 0:02:56]} 13. Bd2 {[%clk 0:02:17]}  f6 {[%clk 0:02:55]} 14. a3 {[%clk 0:02:15]}  g5 {[%clk 0:02:55]} 15. hxg5 {[%clk 0:02:13]}  fxg5 {[%clk 0:02:56]} 16. Ne4 {[%clk 0:02:12]}  Be7 {[%clk 0:02:53]} 17. b4 {[%clk 0:02:08]}  Rdf8 {[%clk 0:02:51]} 18. b5 {[%clk 0:02:07]}  Nd8 {[%clk 0:02:50]} 19. Nc5 {[%clk 0:01:56]}  Bxc5 {[%clk 0:02:50]} 20. dxc5 {[%clk 0:01:56]}  h4 {[%clk 0:02:48]} 21. gxh4 {[%clk 0:01:47]}  gxh4 {[%clk 0:02:42]} 22. Rb1 {[%clk 0:01:35]}  Qg7 {[%clk 0:02:33]} 23. Be4 {[%clk 0:01:18]}  h3 {[%clk 0:02:23]} 24. a4 {[%clk 0:01:16]}  Rh4 {[%clk 0:02:18]} 25. b6 {[%clk 0:00:59]}  axb6 {[%clk 0:01:58]} 26. cxb6 {[%clk 0:00:55]}  c6 {[%clk 0:01:59]} 27. Qc2 {[%clk 0:00:31]}  Qf6 {[%clk 0:01:43]} 28. f3 {[%clk 0:00:28]}  Qg5 {[%clk 0:01:38]} 29. f4 {[%clk 0:00:18]}  Qg3+ {[%clk 0:01:36]} 30. Kd1 {[%clk 0:00:18]}  Nxe3+ {[%clk 0:01:33]} 31. Bxe3 {[%clk 0:00:18]}  Qxe3 {[%clk 0:01:33]} 32. Re1 {[%clk 0:00:14]}  Qd4+ {[%clk 0:01:28]} 33. Kc1 {[%clk 0:00:15]}  Rhxf4 {[%clk 0:01:26]} 34. Rd1 {[%clk 0:00:08]}  Qxe4 {[%clk 0:01:23]} 0-1

[Event "December 5 Early 2023"]
[Site "https://www.chess.com"]
[Date "2023.12.05"]
[Round "7"]
[White "Pham, Le Thao Nguyen"]
[Black "Batbold, Nyamsuren"]
[Result "0-1"]
[Board "112"]
[TimeControl "180+1"]
[WhiteFideId "12401226"]
[BlackFideId "4903331"]
[WhiteElo "2531"]
[BlackElo "2391"]
[WhiteTeam "VIE"]
[BlackTeam "MGL"]
[WhiteClock "0:00:00"]
[BlackClock "0:00:04"]

1. d4 {[%clk 0:03:00]}  Nf6 {[%clk 0:02:59]} 2. c4 {[%clk 0:03:00]}  e6 {[%clk 0:03:00]} 3. Nc3 {[%clk 0:03:00]}  Bb4 {[%clk 0:03:00]} 4. Qc2 {[%clk 0:02:55]}  c5 {[%clk 0:02:51]} 5. Nf3 {[%clk 0:02:38]}  O-O {[%clk 0:02:45]} 6. dxc5 {[%clk 0:02:12]}  Bxc5 {[%clk 0:02:43]} 7. Bg5 {[%clk 0:02:08]}  h6 {[%clk 0:02:41]} 8. Bxf6 {[%clk 0:02:08]}  Qxf6 {[%clk 0:02:41]} 9. a3 {[%clk 0:02:05]}  Nc6 {[%clk 0:02:35]} 10. e3 {[%clk 0:02:06]}  b6 {[%clk 0:02:34]} 11. Rd1 {[%clk 0:02:03]}  Ne5 {[%clk 0:02:31]} 12. Be2 {[%clk 0:01:38]}  Bb7 {[%clk 0:02:15]} 13. b4 {[%clk 0:01:28]}  Nxf3+ {[%clk 0:02:13]} 14. gxf3 {[%clk 0:01:29]}  Bxf3 {[%clk 0:02:11]} 15. Bxf3 {[%clk 0:01:30]}  Qxf3 {[%clk 0:02:10]} 16. Qe4 {[%clk 0:01:30]}  Qxe4 {[%clk 0:01:47]} 17. Nxe4 {[%clk 0:01:31]}  Be7 {[%clk 0:01:44]} 18. Rxd7 {[%clk 0:01:30]}  Bh4 {[%clk 0:01:43]} 19. Ke2 {[%clk 0:01:27]}  Rfc8 {[%clk 0:01:41]} 20. Nd6 {[%clk 0:01:24]}  Rd8 {[%clk 0:01:40]} 21. Rxd8+ {[%clk 0:01:18]}  Rxd8 {[%clk 0:01:40]} 22. Nb5 {[%clk 0:01:14]}  a6 {[%clk 0:01:38]} 23. Nd4 {[%clk 0:01:12]}  Bf6 {[%clk 0:01:35]} 24. Rd1 {[%clk 0:01:11]}  Rc8 {[%clk 0:01:33]} 25. Rc1 {[%clk 0:01:05]}  g5 {[%clk 0:01:31]} 26. h3 {[%clk 0:01:05]}  Be5 {[%clk 0:01:30]} 27. Rc2 {[%clk 0:01:03]}  h5 {[%clk 0:01:26]} 28. c5 {[%clk 0:00:52]}  b5 {[%clk 0:01:20]} 29. Nf3 {[%clk 0:00:47]}  Bf6 {[%clk 0:01:18]} 30. Rd2 {[%clk 0:00:48]}  Rd8 {[%clk 0:01:12]} 31. Rxd8+ {[%clk 0:00:47]}  Bxd8 {[%clk 0:01:13]} 32. Nd2 {[%clk 0:00:45]}  f5 {[%clk 0:01:13]} 33. f3 {[%clk 0:00:38]}  Kf7 {[%clk 0:01:12]} 34. Nb3 {[%clk 0:00:38]}  e5 {[%clk 0:01:12]} 35. e4 {[%clk 0:00:35]}  f4 {[%clk 0:01:10]} 36. Nc1 {[%clk 0:00:33]}  Ke6 {[%clk 0:01:05]} 37. Nd3 {[%clk 0:00:33]}  Bc7 {[%clk 0:00:45]} 38. Nf2 {[%clk 0:00:33]}  Bd8 {[%clk 0:00:45]} 39. Kf1 {[%clk 0:00:29]}  Bc7 {[%clk 0:00:45]} 40. Kg2 {[%clk 0:00:27]}  Bd8 {[%clk 0:00:44]} 41. Nd1 {[%clk 0:00:23]}  Bc7 {[%clk 0:00:44]} 42. Nc3 {[%clk 0:00:23]}  Bd8 {[%clk 0:00:43]} 43. Nd5 {[%clk 0:00:23]}  Kd7 {[%clk 0:00:44]} 44. Nc3 {[%clk 0:00:17]}  Kc6 {[%clk 0:00:43]} 45. Nd1 {[%clk 0:00:17]}  a5 {[%clk 0:00:43]} 46. Nf2 {[%clk 0:00:17]}  axb4 {[%clk 0:00:43]} 47. axb4 {[%clk 0:00:18]}  Kd7 {[%clk 0:00:42]} 48. h4 {[%clk 0:00:14]}  gxh4 {[%clk 0:00:37]} 49. Kh3 {[%clk 0:00:15]}  Ke6 {[%clk 0:00:37]} 50. Nd3 {[%clk 0:00:15]}  Bf6 {[%clk 0:00:31]} 51. Ne1 {[%clk 0:00:15]}  Kd7 {[%clk 0:00:31]} 52. Ng2 {[%clk 0:00:15]}  Kc6 {[%clk 0:00:28]} 53. Nxh4 {[%clk 0:00:15]}  Kd7 {[%clk 0:00:14]} 54. Nf5 {[%clk 0:00:12]}  Kc6 {[%clk 0:00:14]} 55. Nh6 {[%clk 0:00:07]}  Be7 {[%clk 0:00:10]} 56. Nf7 {[%clk 0:00:07]}  Bf6 {[%clk 0:00:09]} 57. Nh6 {[%clk 0:00:07]}  Be7 {[%clk 0:00:10]} 58. Nf7 {[%clk 0:00:08]}  Bf6 {[%clk 0:00:10]} 59. Kg2 {[%clk 0:00:08]}  Kd7 {[%clk 0:00:08]} 60. Nh6 {[%clk 0:00:07]}  Kc6 {[%clk 0:00:08]} 61. Kf2 {[%clk 0:00:07]}  Be7 {[%clk 0:00:08]} 62. Nf7 {[%clk 0:00:07]}  Bf6 {[%clk 0:00:08]} 63. Ke2 {[%clk 0:00:07]}  Kd7 {[%clk 0:00:08]} 64. Kf2 {[%clk 0:00:05]}  Ke6 {[%clk 0:00:07]} 65. Nd6 {[%clk 0:00:05]}  Bh4+ {[%clk 0:00:05]} 66. Ke2 {[%clk 0:00:05]}  Bg3 {[%clk 0:00:05]} 67. Nxb5 {[%clk 0:00:05]}  h4 {[%clk 0:00:05]} 68. Kf1 {[%clk 0:00:04]}  h3 {[%clk 0:00:05]} 69. Nd6 {[%clk 0:00:00]}  Kd7 {[%clk 0:00:04]} 0-1

[Event "December 5 Early 2023"]
[Site "https://www.chess.com"]
[Date "2023.12.05"]
[Round "7"]
[White "Ovezdurdyyeva, Jemal"]
[Black "Chernomordik, Pavel"]
[Result "1-0"]
[Board "113"]
[TimeControl "180+1"]
[WhiteFideId "14001888"]
[BlackFideId "2804530"]
[WhiteElo "2386"]
[BlackElo "2529"]
[WhiteTeam "TKM"]
[BlackTeam "ISR"]
[WhiteClock "0:00:10"]
[BlackClock "0:00:04"]

1. e4 {[%clk 0:03:00]}  g6 {[%clk 0:02:59]} 2. d4 {[%clk 0:02:59]}  Bg7 {[%clk 0:02:58]} 3. Nc3 {[%clk 0:03:00]}  d6 {[%clk 0:02:58]} 4. Nf3 {[%clk 0:03:00]}  a6 {[%clk 0:02:58]} 5. h3 {[%clk 0:02:58]}  b5 {[%clk 0:02:58]} 6. a3 {[%clk 0:02:57]}  Bb7 {[%clk 0:02:57]} 7. Bg5 {[%clk 0:02:57]}  Nd7 {[%clk 0:02:54]} 8. Be2 {[%clk 0:02:56]}  c5 {[%clk 0:02:54]} 9. Qd2 {[%clk 0:02:54]}  h6 {[%clk 0:02:45]} 10. Be3 {[%clk 0:02:49]}  Qc7 {[%clk 0:02:33]} 11. O-O {[%clk 0:02:41]}  Ngf6 {[%clk 0:02:31]} 12. d5 {[%clk 0:02:15]}  b4 {[%clk 0:02:29]} 13. axb4 {[%clk 0:02:11]}  cxb4 {[%clk 0:02:28]} 14. Na4 {[%clk 0:02:12]}  Nxe4 {[%clk 0:02:27]} 15. Qxb4 {[%clk 0:02:12]}  Bxd5 {[%clk 0:02:26]} 16. Rfd1 {[%clk 0:02:08]}  Bc6 {[%clk 0:02:23]} 17. Nd4 {[%clk 0:01:51]}  Bb7 {[%clk 0:02:17]} 18. Bf3 {[%clk 0:01:42]}  Ndf6 {[%clk 0:02:10]} 19. Nb6 {[%clk 0:01:37]}  Rb8 {[%clk 0:01:59]} 20. Qa4+ {[%clk 0:01:35]}  Kf8 {[%clk 0:01:34]} 21. Nb3 {[%clk 0:01:19]}  Nc5 {[%clk 0:01:18]} 22. Nxc5 {[%clk 0:01:15]}  dxc5 {[%clk 0:01:17]} 23. Nd7+ {[%clk 0:01:10]}  Kg8 {[%clk 0:01:09]} 24. Bxb7 {[%clk 0:01:01]}  Rxb7 {[%clk 0:00:59]} 25. Nxc5 {[%clk 0:00:58]}  Rxb2 {[%clk 0:00:52]} 26. c4 {[%clk 0:00:39]}  Kh7 {[%clk 0:00:49]} 27. Nxa6 {[%clk 0:00:36]}  Qc8 {[%clk 0:00:35]} 28. Bd4 {[%clk 0:00:34]}  Re2 {[%clk 0:00:32]} 29. c5 {[%clk 0:00:26]}  e5 {[%clk 0:00:30]} 30. Be3 {[%clk 0:00:24]}  Rb2 {[%clk 0:00:24]} 31. c6 {[%clk 0:00:20]}  Qf5 {[%clk 0:00:21]} 32. c7 {[%clk 0:00:18]}  Ne4 {[%clk 0:00:19]} 33. Ra2 {[%clk 0:00:17]}  Rxa2 {[%clk 0:00:16]} 34. Qxa2 {[%clk 0:00:17]}  Rc8 {[%clk 0:00:16]} 35. Rd8 {[%clk 0:00:14]}  Bf6 {[%clk 0:00:15]} 36. Rxc8 {[%clk 0:00:14]}  Qxc8 {[%clk 0:00:14]} 37. Qxf7+ {[%clk 0:00:15]}  Bg7 {[%clk 0:00:14]} 38. Qc4 {[%clk 0:00:12]}  Nd6 {[%clk 0:00:13]} 39. Qc6 {[%clk 0:00:13]}  Nb7 {[%clk 0:00:11]} 40. Nc5 {[%clk 0:00:12]}  Na5 {[%clk 0:00:10]} 41. Qd6 {[%clk 0:00:12]}  Nc4 {[%clk 0:00:10]} 42. Qd8 {[%clk 0:00:11]}  Qf5 {[%clk 0:00:04]} 43. c8=Q {[%clk 0:00:10]} 1-0

[Event "December 5 Early 2023"]
[Site "https://www.chess.com"]
[Date "2023.12.05"]
[Round "7"]
[White "Seder, Mohammed"]
[Black "Masague Artero, Guerau"]
[Result "0-1"]
[Board "115"]
[TimeControl "180+1"]
[WhiteFideId "11505567"]
[BlackFideId "32098952"]
[WhiteElo "2369"]
[BlackElo "2521"]
[WhiteTeam "PLE"]
[BlackTeam "ESP"]
[WhiteClock "0:00:02"]
[BlackClock "0:00:17"]

1. e4 {[%clk 0:03:00]}  g6 {[%clk 0:02:57]} 2. Nf3 {[%clk 0:02:56]}  Bg7 {[%clk 0:02:53]} 3. d3 {[%clk 0:02:56]}  c5 {[%clk 0:02:51]} 4. g3 {[%clk 0:02:56]}  Nc6 {[%clk 0:02:51]} 5. Bg2 {[%clk 0:02:56]}  d6 {[%clk 0:02:48]} 6. O-O {[%clk 0:02:56]}  e5 {[%clk 0:02:45]} 7. Nc3 {[%clk 0:02:46]}  Nge7 {[%clk 0:02:44]} 8. Ne1 {[%clk 0:02:39]}  Nd4 {[%clk 0:02:38]} 9. f4 {[%clk 0:02:37]}  Rb8 {[%clk 0:02:28]} 10. h3 {[%clk 0:02:32]}  b5 {[%clk 0:02:16]} 11. Nf3 {[%clk 0:02:32]}  O-O {[%clk 0:02:10]} 12. Be3 {[%clk 0:02:17]}  b4 {[%clk 0:02:07]} 13. Ne2 {[%clk 0:02:12]}  Nxe2+ {[%clk 0:01:56]} 14. Qxe2 {[%clk 0:02:11]}  exf4 {[%clk 0:01:57]} 15. gxf4 {[%clk 0:01:52]}  Bxb2 {[%clk 0:01:57]} 16. Rab1 {[%clk 0:01:53]}  Bg7 {[%clk 0:01:57]} 17. d4 {[%clk 0:01:50]}  Qa5 {[%clk 0:01:52]} 18. dxc5 {[%clk 0:01:40]}  Ba6 {[%clk 0:01:50]} 19. Qf2 {[%clk 0:01:31]}  Bxf1 {[%clk 0:01:50]} 20. Bxf1 {[%clk 0:01:28]}  dxc5 {[%clk 0:01:28]} 21. Bxc5 {[%clk 0:01:26]}  Rfe8 {[%clk 0:01:27]} 22. Bxa7 {[%clk 0:01:17]}  Rbc8 {[%clk 0:01:26]} 23. Bd4 {[%clk 0:00:42]}  Qxa2 {[%clk 0:01:22]} 24. Rb2 {[%clk 0:00:35]}  Bxd4 {[%clk 0:01:11]} 25. Qxd4 {[%clk 0:00:34]}  Qa3 {[%clk 0:01:11]} 26. Ne5 {[%clk 0:00:14]}  Qg3+ {[%clk 0:01:03]} 27. Bg2 {[%clk 0:00:14]}  Qxf4 {[%clk 0:01:03]} 28. Ng4 {[%clk 0:00:15]}  Nc6 {[%clk 0:00:55]} 29. Nf6+ {[%clk 0:00:14]}  Kh8 {[%clk 0:00:55]} 30. Nh5+ {[%clk 0:00:04]}  Nxd4 {[%clk 0:00:49]} 31. Nxf4 {[%clk 0:00:04]}  Rxc2 {[%clk 0:00:35]} 32. Rxb4 {[%clk 0:00:03]}  Ne2+ {[%clk 0:00:35]} 33. Nxe2 {[%clk 0:00:03]}  Rxe2 {[%clk 0:00:36]} 34. Rb7 {[%clk 0:00:03]}  Kg7 {[%clk 0:00:36]} 35. Kf1 {[%clk 0:00:04]}  Ra2 {[%clk 0:00:35]} 36. Kg1 {[%clk 0:00:03]}  h5 {[%clk 0:00:29]} 37. Kh2 {[%clk 0:00:02]}  h4 {[%clk 0:00:29]} 38. Kg1 {[%clk 0:00:02]}  Rc8 {[%clk 0:00:28]} 39. Rb1 {[%clk 0:00:02]}  Rc3 {[%clk 0:00:28]} 40. Re1 {[%clk 0:00:01]}  Rg3 {[%clk 0:00:28]} 41. Kh1 {[%clk 0:00:02]}  Raxg2 {[%clk 0:00:25]} 42. e5 {[%clk 0:00:03]}  Rf2 {[%clk 0:00:24]} 43. e6 {[%clk 0:00:02]}  fxe6 {[%clk 0:00:24]} 44. Rxe6 {[%clk 0:00:01]}  Rxh3+ {[%clk 0:00:24]} 45. Kg1 {[%clk 0:00:02]}  Rf6 {[%clk 0:00:24]} 46. Re7+ {[%clk 0:00:02]}  Kh6 {[%clk 0:00:23]} 47. Re4 {[%clk 0:00:03]}  Rg3+ {[%clk 0:00:23]} 48. Kh2 {[%clk 0:00:03]}  g5 {[%clk 0:00:23]} 49. Kh1 {[%clk 0:00:03]}  Kh5 {[%clk 0:00:24]} 50. Kh2 {[%clk 0:00:03]}  Rf2+ {[%clk 0:00:24]} 51. Kh1 {[%clk 0:00:03]}  Rc3 {[%clk 0:00:24]} 52. Re1 {[%clk 0:00:02]}  Rfc2 {[%clk 0:00:24]} 53. Rf1 {[%clk 0:00:01]}  h3 {[%clk 0:00:24]} 54. Rg1 {[%clk 0:00:01]}  Kh4 {[%clk 0:00:21]} 55. Rf1 {[%clk 0:00:01]}  Rb3 {[%clk 0:00:19]} 56. Rg1 {[%clk 0:00:01]}  Rbb2 {[%clk 0:00:19]} 57. Rd1 {[%clk 0:00:01]}  g4 {[%clk 0:00:18]} 58. Kg1 {[%clk 0:00:02]}  Rg2+ {[%clk 0:00:15]} 59. Kf1 {[%clk 0:00:02]}  Rh2 {[%clk 0:00:16]} 60. Kg1 {[%clk 0:00:02]}  Rbg2+ {[%clk 0:00:16]} 61. Kf1 {[%clk 0:00:02]}  Rh1# {[%clk 0:00:17]} 0-1

[Event "December 5 Early 2023"]
[Site "https://www.chess.com"]
[Date "2023.12.05"]
[Round "7"]
[White "Kurmangaliyeva, Liya"]
[Black "Gruzman, Ilya"]
[Result "1/2-1/2"]
[Board "117"]
[TimeControl "180+1"]
[WhiteFideId "13725831"]
[BlackFideId "2812703"]
[WhiteElo "2517"]
[BlackElo "2328"]
[WhiteTeam "KAZ"]
[BlackTeam "ISR"]
[WhiteClock "0:00:06"]
[BlackClock "0:00:06"]

1. d4 {[%clk 0:03:00]}  Nf6 {[%clk 0:02:59]} 2. Nf3 {[%clk 0:03:01]}  g6 {[%clk 0:02:58]} 3. Nbd2 {[%clk 0:03:01]}  d5 {[%clk 0:02:58]} 4. b3 {[%clk 0:02:59]}  Bg7 {[%clk 0:02:57]} 5. Bb2 {[%clk 0:03:00]}  O-O {[%clk 0:02:58]} 6. e3 {[%clk 0:03:00]}  c5 {[%clk 0:02:58]} 7. dxc5 {[%clk 0:02:57]}  Nc6 {[%clk 0:02:58]} 8. a3 {[%clk 0:02:49]}  a5 {[%clk 0:02:58]} 9. c4 {[%clk 0:02:46]}  Re8 {[%clk 0:02:51]} 10. cxd5 {[%clk 0:02:43]}  Nxd5 {[%clk 0:02:52]} 11. Bxg7 {[%clk 0:02:42]}  Kxg7 {[%clk 0:02:52]} 12. Qc2 {[%clk 0:02:41]}  e5 {[%clk 0:02:51]} 13. Bb5 {[%clk 0:02:34]}  Kg8 {[%clk 0:02:34]} 14. Rd1 {[%clk 0:02:10]}  Qe7 {[%clk 0:02:18]} 15. Ne4 {[%clk 0:02:05]}  Nf6 {[%clk 0:02:08]} 16. Nd6 {[%clk 0:01:58]}  Rd8 {[%clk 0:02:05]} 17. Ng5 {[%clk 0:01:47]}  Be6 {[%clk 0:01:57]} 18. Nxe6 {[%clk 0:01:47]}  Qxe6 {[%clk 0:01:58]} 19. Bc4 {[%clk 0:01:47]}  Qg4 {[%clk 0:01:56]} 20. O-O {[%clk 0:01:41]}  Kg7 {[%clk 0:01:52]} 21. h3 {[%clk 0:01:37]}  Qh5 {[%clk 0:01:47]} 22. Nxf7 {[%clk 0:01:33]}  Rxd1 {[%clk 0:01:47]} 23. Rxd1 {[%clk 0:01:33]}  Rf8 {[%clk 0:01:46]} 24. Nd6 {[%clk 0:01:31]}  e4 {[%clk 0:01:34]} 25. Be2 {[%clk 0:01:03]}  Qe5 {[%clk 0:01:32]} 26. Qc4 {[%clk 0:00:54]}  Qe7 {[%clk 0:01:10]} 27. Qb5 {[%clk 0:00:49]}  Rb8 {[%clk 0:01:05]} 28. Nc4 {[%clk 0:00:47]}  Ne5 {[%clk 0:00:57]} 29. Nxe5 {[%clk 0:00:44]}  Qxe5 {[%clk 0:00:58]} 30. Qxa5 {[%clk 0:00:41]}  Nd5 {[%clk 0:00:55]} 31. Rd4 {[%clk 0:00:36]}  Rf8 {[%clk 0:00:51]} 32. Qd2 {[%clk 0:00:34]}  Nf6 {[%clk 0:00:49]} 33. b4 {[%clk 0:00:31]}  Ra8 {[%clk 0:00:49]} 34. Qc3 {[%clk 0:00:30]}  Rc8 {[%clk 0:00:42]} 35. Bc4 {[%clk 0:00:30]}  Kh6 {[%clk 0:00:38]} 36. Qd2 {[%clk 0:00:28]}  Ra8 {[%clk 0:00:36]} 37. Qc3 {[%clk 0:00:27]}  Rc8 {[%clk 0:00:36]} 38. a4 {[%clk 0:00:27]}  g5 {[%clk 0:00:32]} 39. Be2 {[%clk 0:00:22]}  Rc6 {[%clk 0:00:24]} 40. Qb3 {[%clk 0:00:21]}  b6 {[%clk 0:00:20]} 41. Qf7 {[%clk 0:00:18]}  bxc5 {[%clk 0:00:18]} 42. Qf8+ {[%clk 0:00:18]}  Kg6 {[%clk 0:00:17]} 43. bxc5 {[%clk 0:00:15]}  Rxc5 {[%clk 0:00:16]} 44. Rd1 {[%clk 0:00:16]}  Rc2 {[%clk 0:00:16]} 45. Bf1 {[%clk 0:00:14]}  Qf5 {[%clk 0:00:13]} 46. f4 {[%clk 0:00:08]}  exf3 {[%clk 0:00:13]} 47. Bd3 {[%clk 0:00:08]}  Rxg2+ {[%clk 0:00:09]} 48. Kf1 {[%clk 0:00:08]}  Ne4 {[%clk 0:00:07]} 49. Qxf5+ {[%clk 0:00:08]}  Kxf5 {[%clk 0:00:08]} 50. Bb1 {[%clk 0:00:07]}  Rf2+ {[%clk 0:00:07]} 51. Kg1 {[%clk 0:00:07]}  Rg2+ {[%clk 0:00:07]} 52. Kf1 {[%clk 0:00:07]}  Ke5 {[%clk 0:00:08]} 53. Bxe4 {[%clk 0:00:06]}  Kxe4 {[%clk 0:00:09]} 54. Rd8 {[%clk 0:00:06]}  Kxe3 {[%clk 0:00:09]} 55. Re8+ {[%clk 0:00:07]}  Kf4 {[%clk 0:00:09]} 56. Rf8+ {[%clk 0:00:07]}  Kg3 {[%clk 0:00:09]} 57. Rf5 {[%clk 0:00:07]}  Kxh3 {[%clk 0:00:08]} 58. Rxf3+ {[%clk 0:00:07]}  Kh2 {[%clk 0:00:07]} 59. Rf5 {[%clk 0:00:05]}  h5 {[%clk 0:00:04]} 60. a5 {[%clk 0:00:05]}  h4 {[%clk 0:00:04]} 61. a6 {[%clk 0:00:05]}  h3 {[%clk 0:00:04]} 62. a7 {[%clk 0:00:05]}  Ra2 {[%clk 0:00:05]} 63. Rf2+ {[%clk 0:00:05]}  Rxf2+ {[%clk 0:00:03]} 64. Kxf2 {[%clk 0:00:06]}  g4 {[%clk 0:00:03]} 65. a8=Q {[%clk 0:00:06]}  g3+ {[%clk 0:00:04]} 66. Kf3 {[%clk 0:00:05]}  g2 {[%clk 0:00:05]} 67. Qb8+ {[%clk 0:00:05]}  Kh1 {[%clk 0:00:05]} 68. Kg3 {[%clk 0:00:05]}  g1=Q+ {[%clk 0:00:04]} 69. Kxh3 {[%clk 0:00:06]}  Qg2+ {[%clk 0:00:05]} 70. Kh4 {[%clk 0:00:06]}  Qh2+ {[%clk 0:00:05]} 71. Qxh2+ {[%clk 0:00:06]}  Kxh2 {[%clk 0:00:06]} 1/2-1/2

[Event "December 5 Early 2023"]
[Site "https://www.chess.com"]
[Date "2023.12.05"]
[Round "7"]
[White "Antonio, Jorge Carlos"]
[Black "Gutierrez Olivares, Daniel"]
[Result "0-1"]
[Board "118"]
[TimeControl "180+1"]
[WhiteFideId "113190"]
[BlackFideId "2264005"]
[WhiteElo "2318"]
[BlackElo "2517"]
[WhiteTeam "ARG"]
[BlackTeam "ESP"]
[WhiteClock "0:02:10"]
[BlackClock "0:02:32"]

1. d4 {[%clk 0:03:00]}  e6 {[%clk 0:02:59]} 2. Nf3 {[%clk 0:03:00]}  Nf6 {[%clk 0:03:00]} 3. Bf4 {[%clk 0:02:59]}  c5 {[%clk 0:02:59]} 4. e3 {[%clk 0:02:59]}  b6 {[%clk 0:02:59]} 5. c3 {[%clk 0:03:00]}  Bb7 {[%clk 0:03:00]} 6. Nbd2 {[%clk 0:02:58]}  cxd4 {[%clk 0:02:59]} 7. exd4 {[%clk 0:02:58]}  d6 {[%clk 0:03:00]} 8. Be2 {[%clk 0:02:56]}  Be7 {[%clk 0:03:00]} 9. O-O {[%clk 0:02:56]}  O-O {[%clk 0:03:01]} 10. Re1 {[%clk 0:02:55]}  Nbd7 {[%clk 0:03:01]} 11. Bf1 {[%clk 0:02:55]}  Re8 {[%clk 0:03:02]} 12. Qb3 {[%clk 0:02:53]}  Nf8 {[%clk 0:02:59]} 13. Re2 {[%clk 0:02:52]}  Ng6 {[%clk 0:02:59]} 14. Bg3 {[%clk 0:02:51]}  Nh5 {[%clk 0:02:49]} 15. Rae1 {[%clk 0:02:48]}  Nhf4 {[%clk 0:02:46]} 16. Re3 {[%clk 0:02:40]}  Bf8 {[%clk 0:02:41]} 17. h3 {[%clk 0:02:39]}  h5 {[%clk 0:02:37]} 18. Bh2 {[%clk 0:02:38]}  h4 {[%clk 0:02:37]} 19. Ng5 {[%clk 0:02:10]}  Qxg5 {[%clk 0:02:32]} 0-1

[Event "December 5 Early 2023"]
[Site "https://www.chess.com"]
[Date "2023.12.05"]
[Round "7"]
[White "Rodriguez Fontecha, Marcos"]
[Black "Mishra, Manoj"]
[Result "1-0"]
[Board "120"]
[TimeControl "180+1"]
[WhiteFideId "2256576"]
[BlackFideId "5006007"]
[WhiteElo "2508"]
[BlackElo "2245"]
[WhiteTeam "ESP"]
[BlackTeam "IND"]
[WhiteClock "0:00:33"]
[BlackClock "0:00:00"]

1. d4 {[%clk 0:03:00]}  Nf6 {[%clk 0:02:52]} 2. Nf3 {[%clk 0:03:01]}  c5 {[%clk 0:02:47]} 3. Nc3 {[%clk 0:03:00]}  cxd4 {[%clk 0:02:47]} 4. Qxd4 {[%clk 0:03:01]}  Nc6 {[%clk 0:02:45]} 5. Qh4 {[%clk 0:03:01]}  d5 {[%clk 0:02:44]} 6. Bg5 {[%clk 0:03:02]}  d4 {[%clk 0:02:42]} 7. O-O-O {[%clk 0:03:02]}  e5 {[%clk 0:02:27]} 8. e3 {[%clk 0:03:01]}  h6 {[%clk 0:02:16]} 9. exd4 {[%clk 0:03:01]}  hxg5 {[%clk 0:02:08]} 10. Qxh8 {[%clk 0:03:00]}  exd4 {[%clk 0:02:08]} 11. Bb5 {[%clk 0:02:54]}  Qb6 {[%clk 0:01:50]} 12. Nxd4 {[%clk 0:02:52]}  Be6 {[%clk 0:01:36]} 13. Nxe6 {[%clk 0:02:50]}  fxe6 {[%clk 0:01:36]} 14. Rhe1 {[%clk 0:02:47]}  Kf7 {[%clk 0:01:35]} 15. Bc4 {[%clk 0:02:44]}  Ba3 {[%clk 0:01:11]} 16. Bxe6+ {[%clk 0:02:14]}  Kg6 {[%clk 0:01:09]} 17. Bf5+ {[%clk 0:01:51]}  Kf7 {[%clk 0:01:08]} 18. Rd7+ {[%clk 0:01:44]}  Nxd7 {[%clk 0:00:57]} 19. Qh5+ {[%clk 0:01:44]}  Kf8 {[%clk 0:00:49]} 20. bxa3 {[%clk 0:01:43]}  Qxf2 {[%clk 0:00:24]} 21. Qd1 {[%clk 0:01:17]}  Nf6 {[%clk 0:00:18]} 22. Rf1 {[%clk 0:01:08]}  Qe3+ {[%clk 0:00:15]} 23. Qd2 {[%clk 0:01:04]}  Qxd2+ {[%clk 0:00:15]} 24. Kxd2 {[%clk 0:01:05]}  Rd8+ {[%clk 0:00:15]} 25. Kc1 {[%clk 0:01:05]}  Nd4 {[%clk 0:00:14]} 26. Bd3 {[%clk 0:01:04]}  Kg8 {[%clk 0:00:10]} 27. a4 {[%clk 0:01:02]}  a6 {[%clk 0:00:10]} 28. Re1 {[%clk 0:00:58]}  Rc8 {[%clk 0:00:09]} 29. Kb2 {[%clk 0:00:57]}  b5 {[%clk 0:00:07]} 30. axb5 {[%clk 0:00:56]}  axb5 {[%clk 0:00:07]} 31. Re5 {[%clk 0:00:56]}  b4 {[%clk 0:00:06]} 32. Nd5 {[%clk 0:00:51]}  Nxd5 {[%clk 0:00:05]} 33. Rxd5 {[%clk 0:00:52]}  Ne6 {[%clk 0:00:05]} 34. Bf5 {[%clk 0:00:49]}  Rc6 {[%clk 0:00:04]} 35. Bxe6+ {[%clk 0:00:49]}  Rxe6 {[%clk 0:00:03]} 36. Rxg5 {[%clk 0:00:50]}  Re2 {[%clk 0:00:03]} 37. Kb3 {[%clk 0:00:49]}  Kf7 {[%clk 0:00:03]} 38. h4 {[%clk 0:00:46]}  Kf6 {[%clk 0:00:03]} 39. g3 {[%clk 0:00:45]}  g6 {[%clk 0:00:02]} 40. Rg4 {[%clk 0:00:42]}  Kf5 {[%clk 0:00:01]} 41. Rf4+ {[%clk 0:00:42]}  Ke5 {[%clk 0:00:01]} 42. Rxb4 {[%clk 0:00:40]}  Re3+ {[%clk 0:00:00]} 43. Kb2 {[%clk 0:00:38]}  Rxg3 {[%clk 0:00:01]} 44. a4 {[%clk 0:00:38]}  Kd5 {[%clk 0:00:01]} 45. a5 {[%clk 0:00:38]}  Kc5 {[%clk 0:00:01]} 46. Rb3 {[%clk 0:00:36]}  Rg4 {[%clk 0:00:02]} 47. a6 {[%clk 0:00:33]}  Rxh4 {[%clk 0:00:01]} 48. a7 {[%clk 0:00:33]}  Rh8 {[%clk 0:00:00]} 49. Rb8 {[%clk 0:00:33]} 1-0